[Event "KNSB Bekerfinale"]
[Site "Haarlem, Netherlands"]
[Date "????.??.??"]
[Round "1.6"]
[White "Zwirs, Nico"]
[Black "Bosman, Michiel"]
[Result "1-0"]
[TimeControl "100 minutes + increment 10 seconds"]
[WhiteTitle "IM"]
[BlackTitle "IM"]
[WhiteFideId "1036432"]
[BlackFideId "1000721"]
[WhiteElo "2482"]
[BlackElo "2340"]

1. e4 {[%clk 01:40:19]} e6 {[%clk 01:39:25]} {[%emt 00:00:56]} 2. d4 {[%clk
01:40:27]} {[%emt 00:00:02]} d5 {[%clk 01:39:25]} {[%emt 00:00:08]} 3. Nc3
{[%clk 01:40:35]} {[%emt 00:00:03]} Bb4 {[%clk 01:38:29]} {[%emt 00:01:07]} 4.
e5 {[%clk 01:40:39]} {[%emt 00:00:06]} c5 {[%clk 01:38:19]} {[%emt 00:00:20]} 5.
a3 {[%clk 01:40:48]} {[%emt 00:00:02]} Bxc3+ {[%clk 01:38:22]} {[%emt
00:00:07]} 6. bxc3 {[%clk 01:40:56]} Qc7 {[%clk 01:36:37]} {[%emt 00:01:55]} 7.
a4 {[%clk 01:39:34]} {[%emt 00:01:32]} b6 {[%clk 01:30:21]} {[%emt 00:06:26]} 8.
Bb5+ {[%clk 01:37:25]} {[%emt 00:02:18]} Kf8 {[%clk 01:21:32]} {[%emt
00:08:59]} 9. a5 {[%clk 01:34:37]} {[%emt 00:02:58]} Ba6 {[%clk 01:17:59]}
{[%emt 00:03:43]} 10. axb6 {[%clk 01:34:25]} {[%emt 00:00:22]} axb6 {[%clk
01:18:05]} {[%emt 00:00:04]} 11. Nf3 {[%clk 01:30:40]} {[%emt 00:03:54]} Ne7
{[%clk 01:17:14]} {[%emt 00:01:02]} 12. O-O {[%clk 01:24:17]} {[%emt 00:06:33]}
Bxb5 {[%clk 00:42:02]} {[%emt 00:35:22]} 13. Rxa8 {[%clk 01:23:06]} {[%emt
00:01:21]} Bxf1 {[%clk 00:42:11]} {[%emt 00:00:02]} 14. Qxf1 {[%clk 01:23:08]}
{[%emt 00:00:08]} Qb7 {[%clk 00:42:18]} {[%emt 00:00:02]} 15. Ra2 {[%clk
01:20:26]} {[%emt 00:02:52]} c4 {[%clk 00:31:22]} {[%emt 00:11:07]} 16. Ba3
{[%clk 01:20:00]} {[%emt 00:00:36]} Ke8 {[%clk 00:31:22]} {[%emt 00:00:10]} 17.
Qb1 {[%clk 01:14:31]} {[%emt 00:05:39]} Nc8 {[%clk 00:30:29]} {[%emt 00:01:04]}
18. h4 {[%clk 01:09:10]} {[%emt 00:05:31]} h6 {[%clk 00:28:45]} {[%emt
00:01:54]} 19. h5 {[%clk 01:08:44]} {[%emt 00:00:36]} Kd7 {[%clk 00:22:26]}
{[%emt 00:06:29]} 20. Qc1 {[%clk 01:05:20]} {[%emt 00:03:34]} Kc6 {[%clk
00:20:48]} {[%emt 00:01:48]} 21. Qf4 {[%clk 01:04:23]} {[%emt 00:01:07]} Qd7
{[%clk 00:20:04]} {[%emt 00:00:54]} 22. Qg4 {[%clk 00:53:34]} {[%emt 00:11:00]}
Rg8 {[%clk 00:19:58]} {[%emt 00:00:16]} 23. Nh4 {[%clk 00:52:55]} {[%emt
00:00:48]} Kb7 {[%clk 00:11:12]} {[%emt 00:08:57]} 24. f4 {[%clk 00:49:48]}
{[%emt 00:03:17]} g6 {[%clk 00:10:20]} {[%emt 00:01:02]} 25. Nf3 {[%clk
00:35:46]} {[%emt 00:14:12]} Ne7 {[%clk 00:10:00]} {[%emt 00:00:30]} 26. Bxe7
{[%clk 00:27:33]} {[%emt 00:08:24]} Qxe7 {[%clk 00:10:08]} {[%emt 00:00:01]} 27.
Qh3 {[%clk 00:25:41]} {[%emt 00:02:01]} Nd7 {[%clk 00:07:40]} {[%emt 00:02:39]}
28. hxg6 {[%clk 00:24:55]} {[%emt 00:00:57]} Rxg6 {[%clk 00:07:37]} {[%emt
00:00:12]} 29. f5 {[%clk 00:19:40]} {[%emt 00:05:25]} exf5 {[%clk 00:06:44]}
{[%emt 00:01:03]} 30. Nh4 {[%clk 00:18:27]} {[%emt 00:01:23]} Rg5 {[%clk
00:02:59]} {[%emt 00:03:56]} 31. Nxf5 {[%clk 00:17:22]} {[%emt 00:01:14]} Qe6
{[%clk 00:03:06]} {[%emt 00:00:03]} 32. Nd6+ {[%clk 00:17:11]} {[%emt
00:00:21]} Kb8 {[%clk 00:03:09]} {[%emt 00:00:06]} 33. Qxe6 {[%clk 00:11:56]}
{[%emt 00:05:27]} fxe6 {[%clk 00:03:18]} 34. Ra1 {[%clk 00:11:27]} {[%emt
00:00:39]} Rg3 {[%clk 00:02:34]} {[%emt 00:00:54]} 35. Kf2 {[%clk 00:10:30]}
{[%emt 00:01:07]} Rg6 {[%clk 00:02:12]} {[%emt 00:00:32]} 36. Rh1 {[%clk
00:10:22]} {[%emt 00:00:18]} Kc7 {[%clk 00:01:30]} {[%emt 00:00:52]} 37. Nf7
{[%clk 00:10:07]} {[%emt 00:00:25]} Rg7 {[%clk 00:00:19]} {[%emt 00:01:22]} 38.
Nxh6 {[%clk 00:09:50]} {[%emt 00:00:26]} Rh7 {[%clk 00:00:23]} {[%emt
00:00:06]} 39. g4 {[%clk 00:08:38]} {[%emt 00:01:22]} Nf8 {[%clk 00:00:24]}
{[%emt 00:00:10]} 40. Kg3 {[%clk 00:07:48]} {[%emt 00:00:59]} Kd8 {[%clk
00:00:25]} {[%emt 00:00:09]} 41. g5 {[%clk 00:07:36]} {[%emt 00:00:22]} Ra7
{[%clk 00:00:30]} {[%emt 00:00:06]} 42. Rf1 {[%clk 00:05:54]} {[%emt 00:01:51]}
Ke8 {[%clk 00:00:35]} {[%emt 00:00:05]} 43. Kg4 {[%clk 00:05:39]} {[%emt
00:00:25]} Ra2 {[%clk 00:00:36]} {[%emt 00:00:10]} 44. Nf7 {[%clk 00:05:40]}
{[%emt 00:00:08]} Ng6 {[%clk 00:00:36]} {[%emt 00:00:11]} 45. Nd6+ {[%clk
00:05:29]} {[%emt 00:00:22]} Kd8 {[%clk 00:00:24]} {[%emt 00:00:22]} 46. Rf2
{[%clk 00:03:05]} {[%emt 00:02:34]} Ra3 {[%clk 00:00:18]} {[%emt 00:00:16]} 47.
Rf6 {[%clk 00:02:21]} {[%emt 00:00:54]} Ne7 {[%clk 00:00:27]} {[%emt 00:00:01]}
48. Rxe6 {[%clk 00:02:17]} {[%emt 00:00:14]} Rxc3 {[%clk 00:00:31]} {[%emt
00:00:06]} 49. Nf5 {[%clk 00:02:19]} {[%emt 00:00:08]} Nxf5 {[%clk 00:00:22]}
{[%emt 00:00:19]} 50. Kxf5 {[%clk 00:02:27]} {[%emt 00:00:01]} Rxc2 {[%clk
00:00:24]} {[%emt 00:00:08]} 51. Rxb6 {[%clk 00:02:30]} {[%emt 00:00:07]} Ke7
{[%clk 00:00:32]} {[%emt 00:00:03]} 52. Rb7+ {[%clk 00:02:36]} {[%emt
00:00:03]} Kf8 {[%clk 00:00:41]} 53. Ke6 {[%clk 00:02:41]} {[%emt 00:00:06]} c3
{[%clk 00:00:47]} {[%emt 00:00:04]} 54. Kxd5 {[%clk 00:02:48]} {[%emt
00:00:02]} Rg2 {[%clk 00:00:52]} {[%emt 00:00:06]} 55. Rc7 {[%clk 00:02:54]}
{[%emt 00:00:03]} c2 {[%clk 00:01:00]} {[%emt 00:00:02]} 56. Ke4 {[%emt
00:00:46]} 1-0

[Event "KNSB Bekerfinale"]
[Site "Haarlem, Netherlands"]
[Date "????.??.??"]
[Round "1.7"]
[White "Pijpers, Arthur"]
[Black "Van Delft, Merijn"]
[Result "0-1"]
[TimeControl "100 minutes + increment 10 seconds"]
[WhiteTitle "IM"]
[BlackTitle "IM"]
[WhiteFideId "1019554"]
[BlackFideId "1004670"]
[WhiteElo "2456"]
[BlackElo "2391"]

1. e4 {[%clk 01:40:17]} {[%emt 00:00:02]} c5 {[%clk 01:40:13]} {[%emt
00:00:06]} 2. Nc3 {[%clk 01:39:58]} {[%emt 00:00:30]} d6 {[%clk 01:38:04]}
{[%emt 00:02:18]} 3. f4 {[%clk 01:39:49]} {[%emt 00:00:21]} g6 {[%clk
01:37:37]} {[%emt 00:00:35]} 4. Nf3 {[%clk 01:39:54]} {[%emt 00:00:06]} Bg7
{[%clk 01:37:40]} {[%emt 00:00:04]} 5. a3 {[%clk 01:39:59]} {[%emt 00:00:09]}
Nc6 {[%clk 01:32:17]} {[%emt 00:05:32]} 6. Bb5 {[%clk 01:38:54]} {[%emt
00:01:16]} Bd7 {[%clk 01:31:16]} {[%emt 00:01:09]} 7. O-O {[%clk 01:38:54]}
{[%emt 00:00:11]} Nd4 {[%clk 01:24:34]} {[%emt 00:06:51]} 8. Nxd4 {[%clk
01:17:06]} {[%emt 00:22:00]} cxd4 {[%clk 01:18:02]} {[%emt 00:06:41]} 9. Bxd7+
{[%clk 01:17:10]} {[%emt 00:00:06]} Qxd7 {[%clk 01:18:02]} {[%emt 00:00:09]} 10.
Ne2 {[%clk 01:17:14]} {[%emt 00:00:07]} f5 {[%clk 01:15:46]} {[%emt 00:02:24]}
11. exf5 {[%clk 01:03:44]} {[%emt 00:13:43]} Qxf5 {[%clk 01:14:16]} {[%emt
00:01:37]} 12. d3 {[%clk 00:58:33]} {[%emt 00:05:23]} Nh6 {[%clk 01:03:39]}
{[%emt 00:10:46]} 13. h3 {[%clk 00:40:59]} {[%emt 00:17:46]} Rc8 {[%clk
00:58:34]} {[%emt 00:05:14]} 14. g4 {[%clk 00:35:33]} {[%emt 00:05:37]} Qc5
{[%clk 00:56:19]} {[%emt 00:02:24]} 15. f5 {[%clk 00:35:38]} {[%emt 00:00:06]}
gxf5 {[%clk 00:44:57]} {[%emt 00:11:32]} 16. Nf4 {[%clk 00:35:41]} {[%emt
00:00:08]} fxg4 {[%clk 00:42:19]} {[%emt 00:02:47]} 17. b4 {[%clk 00:18:20]}
{[%emt 00:17:32]} Qf5 {[%clk 00:33:55]} {[%emt 00:08:32]} 18. Ng2 {[%clk
00:15:34]} {[%emt 00:02:57]} Qh5 {[%clk 00:28:44]} {[%emt 00:05:20]} 19. Qe2
{[%clk 00:14:02]} {[%emt 00:01:43]} Be5 {[%clk 00:25:36]} {[%emt 00:03:17]} 20.
h4 {[%clk 00:07:21]} {[%emt 00:06:52]} Nf5 {[%clk 00:13:44]} {[%emt 00:12:02]}
21. Bf4 {[%clk 00:07:29]} {[%emt 00:00:02]} Bxf4 {[%clk 00:10:33]} {[%emt
00:03:21]} 22. Rxf4 {[%clk 00:06:55]} {[%emt 00:00:44]} Nxh4 {[%clk 00:08:23]}
{[%emt 00:02:19]} 23. Rxg4 {[%clk 00:05:25]} {[%emt 00:01:41]} Ng6 {[%clk
00:07:46]} {[%emt 00:00:47]} 24. Re1 {[%clk 00:04:53]} {[%emt 00:00:43]} Rxc2
{[%clk 00:07:01]} {[%emt 00:00:54]} 25. Qe6 {[%clk 00:05:02]} {[%emt 00:00:03]}
Ne5 {[%clk 00:05:59]} {[%emt 00:01:11]} 26. Rf4 {[%clk 00:02:33]} {[%emt
00:02:40]} Rxg2+ {[%clk 00:03:54]} {[%emt 00:02:15]} 27. Kxg2 {[%clk 00:02:42]}
{[%emt 00:00:01]} Qg5+ {[%clk 00:03:56]} {[%emt 00:00:08]} 28. Kh1 {[%clk
00:01:08]} {[%emt 00:01:45]} Qxf4 {[%clk 00:03:43]} {[%emt 00:00:22]} 29. Qc8+
{[%clk 00:01:16]} {[%emt 00:00:03]} Kf7 {[%clk 00:03:45]} {[%emt 00:00:06]} 30.
Qxh8 {[%clk 00:01:23]} Qh4+ {[%clk 00:02:34]} {[%emt 00:01:25]} 31. Kg2 {[%clk
00:01:31]} {[%emt 00:00:02]} Qxe1 {[%clk 00:02:36]} {[%emt 00:00:09]} 0-1

[Event "KNSB Bekerfinale"]
[Site "Haarlem, Netherlands"]
[Date "????.??.??"]
[Round "1.8"]
[White "Beerdsen, Thomas"]
[Black "Van Wessel, Rudy"]
[Result "1-0"]
[TimeControl "100 minutes + increment 10 seconds"]
[WhiteTitle "GM"]
[BlackTitle "IM"]
[WhiteFideId "1030108"]
[BlackFideId "1004395"]
[WhiteElo "2497"]
[BlackElo "2347"]

1. e4 {[%clk 01:40:15]} {[%emt 00:00:03]} c5 {[%clk 01:39:50]} {[%emt
00:00:31]} 2. Nf3 {[%clk 01:40:18]} {[%emt 00:00:07]} d6 {[%clk 01:39:47]}
{[%emt 00:00:12]} 3. d4 {[%clk 01:40:03]} {[%emt 00:00:25]} cxd4 {[%clk
01:39:49]} {[%emt 00:00:08]} 4. Nxd4 {[%clk 01:40:06]} {[%emt 00:00:06]} Nf6
{[%clk 01:39:44]} {[%emt 00:00:16]} 5. Nc3 {[%clk 01:40:05]} {[%emt 00:00:11]}
a6 {[%clk 01:39:20]} {[%emt 00:00:34]} 6. h4 {[%clk 01:38:17]} {[%emt
00:01:57]} e5 {[%clk 01:31:50]} {[%emt 00:07:40]} 7. Nb3 {[%clk 01:37:31]}
{[%emt 00:00:56]} Be7 {[%clk 01:30:35]} {[%emt 00:01:25]} 8. Be2 {[%clk
01:37:27]} {[%emt 00:00:14]} Be6 {[%clk 01:26:27]} {[%emt 00:04:17]} 9. f4
{[%clk 01:33:46]} {[%emt 00:03:51]} exf4 {[%clk 01:20:28]} {[%emt 00:06:09]} 10.
Bxf4 {[%clk 01:33:45]} {[%emt 00:00:12]} Nc6 {[%clk 01:20:31]} {[%emt
00:00:06]} 11. Qd2 {[%clk 01:31:18]} {[%emt 00:02:37]} O-O {[%clk 01:03:20]}
{[%emt 00:17:20]} 12. O-O-O {[%clk 01:30:32]} {[%emt 00:00:57]} Ne5 {[%clk
01:03:13]} {[%emt 00:00:18]} 13. Qe3 {[%clk 01:16:37]} {[%emt 00:14:04]} Qc7
{[%clk 00:57:58]} {[%emt 00:05:25]} 14. h5 {[%clk 01:14:13]} {[%emt 00:02:34]}
Rfe8 {[%clk 00:54:37]} {[%emt 00:03:31]} 15. g4 {[%clk 01:12:16]} {[%emt
00:02:06]} b5 {[%clk 00:45:37]} {[%emt 00:09:11]} 16. g5 {[%clk 01:06:51]}
{[%emt 00:05:35]} Nfd7 {[%clk 00:45:37]} {[%emt 00:00:09]} 17. Nd4 {[%clk
00:56:33]} {[%emt 00:10:28]} b4 {[%clk 00:41:35]} {[%emt 00:04:14]} 18. Nd5
{[%clk 00:56:15]} {[%emt 00:00:27]} Bxd5 {[%clk 00:41:34]} {[%emt 00:00:11]} 19.
exd5 {[%clk 00:56:20]} {[%emt 00:00:05]} Bf8 {[%clk 00:39:06]} {[%emt
00:02:38]} 20. Qh3 {[%clk 00:51:39]} {[%emt 00:04:51]} Nb6 {[%clk 00:33:08]}
{[%emt 00:06:08]} 21. Qg2 {[%clk 00:46:08]} {[%emt 00:05:40]} Nbc4 {[%clk
00:20:59]} {[%emt 00:12:20]} 22. Kb1 {[%clk 00:43:17]} {[%emt 00:03:01]} a5
{[%clk 00:20:54]} {[%emt 00:00:16]} 23. Rh3 {[%clk 00:39:25]} {[%emt 00:04:00]}
a4 {[%clk 00:18:17]} {[%emt 00:02:48]} 24. g6 {[%clk 00:36:23]} {[%emt
00:03:12]} fxg6 {[%clk 00:13:04]} {[%emt 00:05:23]} 25. hxg6 {[%clk 00:35:59]}
{[%emt 00:00:34]} Nxg6 {[%clk 00:12:55]} {[%emt 00:00:19]} 26. Bc1 {[%clk
00:35:26]} {[%emt 00:00:43]} Rxe2 {[%clk 00:04:34]} {[%emt 00:08:31]} 27. Qxe2
{[%clk 00:35:18]} {[%emt 00:00:17]} Nge5 {[%clk 00:04:27]} {[%emt 00:00:17]} 28.
Rdh1 {[%clk 00:33:44]} {[%emt 00:01:43]} g6 {[%clk 00:03:45]} {[%emt 00:00:53]}
29. Ne6 {[%clk 00:32:59]} {[%emt 00:00:55]} Qb7 {[%clk 00:02:59]} {[%emt
00:00:56]} 30. Qh2 {[%clk 00:28:27]} {[%emt 00:04:41]} h5 {[%clk 00:01:45]}
{[%emt 00:01:24]} 31. Rxh5 {[%clk 00:27:12]} {[%emt 00:01:25]} gxh5 {[%clk
00:01:18]} {[%emt 00:00:37]} 32. Qxh5 {[%clk 00:27:15]} {[%emt 00:00:07]} 1-0

[ePGN "0.1;DGT LiveChess/2.2.6"]

[Event "KNSB Bekerfinale"]
[Site "Haarlem, Netherlands"]
[Date "????.??.??"]
[Round "2.1"]
[White "Warmerdam, Max"]
[Black "Burg, Twan"]
[Result "1-0"]
[TimeControl "100 minutes + increment 10 seconds"]
[WhiteTitle "GM"]
[BlackTitle "GM"]
[WhiteFideId "1048104"]
[BlackFideId "1010697"]
[WhiteElo "2631"]
[BlackElo "2506"]

1. c4 {[%clk 01:40:17]} {[%emt 00:00:02]} e5 {[%clk 01:40:11]} {[%emt
00:00:09]} 2. Nc3 {[%clk 01:40:21]} {[%emt 00:00:05]} Nf6 {[%clk 01:40:16]}
{[%emt 00:00:05]} 3. Nf3 {[%clk 01:40:26]} {[%emt 00:00:05]} Nc6 {[%clk
01:40:23]} {[%emt 00:00:04]} 4. d3 {[%clk 01:40:30]} {[%emt 00:00:05]} d5
{[%clk 01:40:00]} {[%emt 00:00:32]} 5. cxd5 {[%clk 01:40:35]} {[%emt 00:00:06]}
Nxd5 {[%clk 01:40:06]} {[%emt 00:00:04]} 6. e4 {[%clk 01:40:39]} {[%emt
00:00:06]} Nxc3 {[%clk 01:37:00]} {[%emt 00:03:17]} 7. bxc3 {[%clk 01:40:42]}
{[%emt 00:00:06]} Bc5 {[%clk 01:36:57]} {[%emt 00:00:13]} 8. Be2 {[%clk
01:40:18]} {[%emt 00:00:34]} O-O {[%clk 01:37:00]} {[%emt 00:00:06]} 9. O-O
{[%clk 01:39:56]} {[%emt 00:00:32]} Qd6 {[%clk 01:26:19]} {[%emt 00:10:52]} 10.
a4 {[%clk 01:34:59]} {[%emt 00:05:07]} Bg4 {[%clk 01:23:41]} {[%emt 00:02:48]}
11. h3 {[%clk 01:27:04]} {[%emt 00:08:06]} Bd7 {[%clk 01:18:52]} {[%emt
00:04:58]} 12. Nd2 {[%clk 01:04:55]} {[%emt 00:22:20]} Qg6 {[%clk 01:16:27]}
{[%emt 00:02:33]} 13. Bh5 {[%clk 01:03:20]} {[%emt 00:01:46]} Qf6 {[%clk
01:11:43]} {[%emt 00:04:53]} 14. Nb3 {[%clk 01:02:48]} {[%emt 00:00:43]} Bd6
{[%clk 01:11:36]} {[%emt 00:00:17]} 15. d4 {[%clk 01:00:32]} {[%emt 00:02:27]}
Qe7 {[%clk 01:10:40]} {[%emt 00:01:05]} 16. Bf3 {[%clk 00:58:56]} {[%emt
00:01:46]} f6 {[%clk 01:08:24]} {[%emt 00:02:24]} 17. a5 {[%clk 00:57:13]}
{[%emt 00:01:54]} Nd8 {[%clk 01:04:28]} {[%emt 00:04:05]} 18. Re1 {[%clk
00:54:55]} {[%emt 00:02:29]} Ne6 {[%clk 01:03:16]} {[%emt 00:01:21]} 19. Bg4
{[%clk 00:52:24]} {[%emt 00:02:43]} Rad8 {[%clk 01:01:01]} {[%emt 00:02:25]} 20.
Be3 {[%clk 00:50:25]} {[%emt 00:02:09]} b6 {[%clk 00:54:58]} {[%emt 00:06:14]}
21. Qc2 {[%clk 00:49:17]} {[%emt 00:01:17]} Be8 {[%clk 00:48:48]} {[%emt
00:06:20]} 22. axb6 {[%clk 00:48:38]} {[%emt 00:00:49]} axb6 {[%clk 00:48:33]}
{[%emt 00:00:25]} 23. Ra7 {[%clk 00:48:42]} {[%emt 00:00:06]} Bd7 {[%clk
00:45:05]} {[%emt 00:03:37]} 24. d5 {[%clk 00:47:21]} {[%emt 00:01:31]} Nc5
{[%clk 00:44:18]} {[%emt 00:00:57]} 25. Nxc5 {[%clk 00:41:54]} {[%emt
00:05:37]} bxc5 {[%clk 00:44:16]} {[%emt 00:00:11]} 26. Bxd7 {[%clk 00:40:46]}
{[%emt 00:01:19]} Rxd7 {[%clk 00:44:07]} {[%emt 00:00:19]} 27. Qa4 {[%clk
00:40:00]} {[%emt 00:00:57]} f5 {[%clk 00:42:12]} {[%emt 00:02:05]} 28. f3
{[%clk 00:39:06]} {[%emt 00:01:04]} Rdd8 {[%clk 00:41:38]} {[%emt 00:00:43]} 29.
exf5 {[%clk 00:29:34]} {[%emt 00:09:42]} Rxf5 {[%clk 00:40:59]} {[%emt
00:00:49]} 30. Qe4 {[%clk 00:29:34]} {[%emt 00:00:11]} Rff8 {[%clk 00:40:07]}
{[%emt 00:01:01]} 31. Rb1 {[%clk 00:26:10]} {[%emt 00:03:34]} Ra8 {[%clk
00:39:09]} {[%emt 00:01:08]} 32. Rxa8 {[%clk 00:25:49]} {[%emt 00:00:32]} Rxa8
{[%clk 00:39:16]} {[%emt 00:00:02]} 33. Kh1 {[%clk 00:25:39]} {[%emt 00:00:21]}
Qe8 {[%clk 00:37:02]} {[%emt 00:02:23]} 34. Bg1 {[%clk 00:21:28]} {[%emt
00:04:21]} Qg6 {[%clk 00:36:22]} {[%emt 00:00:51]} 35. Qxg6 {[%clk 00:14:51]}
{[%emt 00:06:47]} hxg6 {[%clk 00:36:17]} {[%emt 00:00:14]} 36. c4 {[%clk
00:14:58]} {[%emt 00:00:04]} Ra4 {[%clk 00:32:28]} {[%emt 00:03:58]} 37. Rc1
{[%clk 00:15:07]} {[%emt 00:00:02]} Kf7 {[%clk 00:32:32]} {[%emt 00:00:06]} 38.
Bf2 {[%clk 00:15:07]} {[%emt 00:00:10]} Ke7 {[%clk 00:32:17]} {[%emt 00:00:24]}
39. Kg1 {[%clk 00:15:12]} {[%emt 00:00:05]} Kd7 {[%clk 00:32:24]} {[%emt
00:00:03]} 40. Kf1 {[%clk 00:14:28]} {[%emt 00:00:55]} c6 {[%clk 00:32:27]}
{[%emt 00:00:07]} 41. dxc6+ {[%clk 00:14:36]} {[%emt 00:00:01]} Kxc6 {[%clk
00:32:31]} {[%emt 00:00:04]} 42. Rc2 {[%clk 00:14:43]} {[%emt 00:00:05]} Be7
{[%clk 00:25:22]} {[%emt 00:07:19]} 43. Ke2 {[%clk 00:14:48]} {[%emt 00:00:05]}
Ra3 {[%clk 00:24:43]} {[%emt 00:00:49]} 44. Be1 {[%clk 00:14:53]} {[%emt
00:00:05]} Bf6 {[%clk 00:24:19]} {[%emt 00:00:34]} 45. Bd2 {[%clk 00:14:29]}
{[%emt 00:00:34]} e4 {[%clk 00:19:03]} {[%emt 00:05:26]} 46. fxe4 {[%clk
00:14:34]} {[%emt 00:00:05]} Bd4 {[%clk 00:19:10]} {[%emt 00:00:03]} 47. Bf4
{[%clk 00:13:56]} {[%emt 00:00:48]} Kd7 {[%clk 00:17:50]} {[%emt 00:01:30]} 48.
h4 {[%clk 00:13:14]} {[%emt 00:00:52]} Ke6 {[%clk 00:17:42]} {[%emt 00:00:18]}
49. g3 {[%clk 00:12:33]} {[%emt 00:00:51]} Be5 {[%clk 00:15:54]} {[%emt
00:01:58]} 50. Kf2 {[%clk 00:12:35]} {[%emt 00:00:07]} Bd4+ {[%clk 00:14:39]}
{[%emt 00:01:25]} 51. Kg2 {[%clk 00:12:39]} {[%emt 00:00:06]} Be5 {[%clk
00:14:38]} {[%emt 00:00:11]} 52. Bxe5 {[%clk 00:11:43]} {[%emt 00:01:07]} Kxe5
{[%clk 00:14:44]} {[%emt 00:00:04]} 53. Rd2 {[%clk 00:11:49]} {[%emt 00:00:04]}
Kxe4 {[%clk 00:13:54]} {[%emt 00:01:00]} 54. Rd5 {[%clk 00:11:06]} {[%emt
00:00:53]} Ra5 {[%clk 00:13:51]} {[%emt 00:00:13]} 55. Kh3 {[%clk 00:11:03]}
{[%emt 00:00:13]} Kf3 {[%clk 00:13:53]} {[%emt 00:00:08]} 56. Rd7 {[%clk
00:10:56]} {[%emt 00:00:17]} Ra4 {[%clk 00:10:33]} {[%emt 00:03:30]} 57. Rxg7
{[%clk 00:10:35]} {[%emt 00:00:30]} Rxc4 {[%clk 00:10:38]} {[%emt 00:00:05]} 58.
Rxg6 {[%clk 00:10:42]} {[%emt 00:00:03]} Rc1 {[%clk 00:10:45]} {[%emt
00:00:03]} 59. Rf6+ {[%clk 00:10:48]} {[%emt 00:00:04]} Ke4 {[%clk 00:10:51]}
{[%emt 00:00:04]} 60. h5 {[%clk 00:06:42]} {[%emt 00:04:16]} c4 {[%clk
00:10:56]} {[%emt 00:00:05]} 61. Rc6 {[%clk 00:05:49]} {[%emt 00:01:02]} c3
{[%clk 00:10:54]} {[%emt 00:00:13]} 62. h6 {[%clk 00:04:57]} {[%emt 00:01:03]}
c2 {[%clk 00:10:56]} {[%emt 00:00:08]} 63. Kg2 {[%clk 00:04:48]} {[%emt
00:00:19]} Rd1 {[%clk 00:09:42]} {[%emt 00:01:24]} 64. Rxc2 {[%clk 00:04:14]}
{[%emt 00:00:43]} Kf5 {[%clk 00:08:07]} {[%emt 00:01:45]} 65. h7 {[%clk
00:03:55]} {[%emt 00:00:29]} Rd8 {[%clk 00:08:08]} {[%emt 00:00:09]} 66. Rc4
{[%clk 00:03:58]} {[%emt 00:00:08]} Kg6 {[%clk 00:07:55]} {[%emt 00:00:23]} 67.
Rh4 {[%clk 00:04:06]} {[%emt 00:00:01]} Rh8 {[%clk 00:08:00]} {[%emt 00:00:04]}
68. Kf3 {[%clk 00:04:15]} {[%emt 00:00:02]} Rf8+ {[%clk 00:07:09]} {[%emt
00:01:01]} 69. Kg4 {[%clk 00:04:21]} {[%emt 00:00:03]} Rh8 {[%clk 00:07:17]}
{[%emt 00:00:02]} 70. Rh1 {[%clk 00:04:27]} {[%emt 00:00:04]} Kf6 {[%clk
00:07:17]} {[%emt 00:00:10]} 71. Rh6+ {[%clk 00:04:35]} {[%emt 00:00:02]} Kg7
{[%clk 00:06:59]} {[%emt 00:00:28]} 72. Kg5 {[%clk 00:04:44]} {[%emt 00:00:01]}
Kf7 {[%clk 00:07:03]} {[%emt 00:00:06]} 73. Rf6+ {[%clk 00:04:51]} {[%emt
00:00:03]} Kg7 {[%clk 00:07:11]} {[%emt 00:00:02]} 74. Rg6+ {[%clk 00:05:00]}
{[%emt 00:00:01]} Kf7 {[%clk 00:07:16]} {[%emt 00:00:05]} 75. Kh6 {[%clk
00:05:09]} {[%emt 00:00:01]} 1-0